bitfinex-derivatives/quotes_ETHF0:USTF0_20251008
["timestamp","ask_amount","ask_price","bid_price","bid_amount"]
[1759882681060,0.40296,4464.6,4464.5,1.0761]
[1759882681258,1.1480692,4464.6,4464.5,1.552]
[1759882681461,4.1047799,4464.6,4464.5,2.0785]
[1759882681858,4.1047799,4464.6,4464.5,1.0761]
[1759882682261,4.1047799,4464.6,4464.5,1.552]
[1759882683664,3.7018199,4464.6,4464.5,2.0785]
[1759882684258,3.1817107,4464.6,4464.5,2.0785]
[1759882684564,3.70427647,4464.6,4464.5,2.48147]
[1759882685559,4.10723647,4464.6,4464.5,2.0785]
[1759882686062,3.70427647,4464.6,4464.5,2.48147]
[1759882686663,4.10723647,4464.6,4464.5,2.0785]
[1759882687160,3.70427647,4464.6,4464.5,2.48147]
[1759882687361,3.1817107,4464.6,4464.5,2.48147]
[1759882687563,1.20061317,4465.6,4464.7,1.00739]
[1759882687564,3.21062524,4465.6,4464.7,1.00739]
[1759882687762,3.21062524,4465.6,4465.5,2.0858]
[1759882687966,0.52532993,4465.6,4465.5,2.71368]
[1759882688166,0.00282524,4465.6,4465.5,7.71368]
[1759882688770,0.4028,4466.5,4466.4,1.7747]
[1759882688962,1.15043488,4466.5,4466.4,1.7747]
[1759882689269,4.06532194,4466.5,4466.4,1.7747]
[1759882689561,3.66252194,4466.5,4466.4,1.7747]
[1759882689763,3.43959261,4466.5,4466.4,1.77670462]
[1759882689969,3.66459261,4466.5,4466.4,1.77670462]
[1759882690571,1.9855904,4468.3,4467.6,0.7723]
[1759882690572,0.40269,4467.7,4467.6,0.7723]
[1759882691067,0.225,4467.7,4467.6,0.7723]
[1759882691470,0.22737376,4467.7,4467.6,0.7723]
[1759882691775,0.40278,4466.7,4466.6,0.7723]
[1759882692074,3.60120911,4466.7,4466.6,0.7723]
[1759882692769,0.40279,4466.5,4466.2,0.7723]
[1759882692963,0.62779,4466.5,4466.2,0.7723]
[1759882693166,3.60523163,4466.5,4466.2,0.7723]
[1759882694271,3.60523163,4466.5,4466.4,0.77430462]
[1759882694467,3.60523163,4466.5,4466.4,0.00200462]
[1759882697069,3.60523163,4466.5,4466.4,0.77430462]
[1759882697263,3.60523163,4466.5,4466.4,0.00200462]
[1759882697669,3.60523163,4466.5,4466.4,0.77430462]
[1759882697974,3.60523163,4466.5,4466.4,0.00200462]
[1759882698273,3.60523163,4466.5,4465.5,0.3111]
[1759882698274,0.40287,4465.6,4465.5,1.0834]
[1759882698470,0.62787,4465.6,4465.5,1.0834]
[1759882698670,3.51917101,4465.6,4465.5,1.0834]
[1759882698869,3.11630101,4465.6,4465.5,1.5593]
[1759882699073,2.89130101,4465.6,4465.5,2.08807591]
[1759882702078,2.89130101,4465.6,4465.5,7.08807591]
[1759882702278,0.40285,4466.0,4465.9,1.7747]
[1759882702573,0.40285,4466.0,4465.9,1.2482]
[1759882702574,3.79408413,4466.0,4465.9,1.2482]
[1759882702773,2.86710909,4466.6,4465.9,6.9997]
[1759882703080,0.40278,4466.6,4466.5,2.0858]
[1759882703380,3.12627788,4466.6,4466.5,2.0858]
[1759882704678,2.90127788,4466.6,4466.5,2.0858]
[1759882705777,0.225,4466.9,4466.8,1.7747]
[1759882706279,3.14649552,4466.9,4466.8,1.7747]
[1759882708172,2.92149552,4466.9,4466.8,1.7747]
[1759882708573,0.40275,4467.0,4466.9,0.727]
[1759882708769,3.32581654,4467.0,4466.9,1.7055]
[1759882708969,0.40275,4467.0,4466.9,1.7055]
[1759882709177,2.92306654,4467.0,4466.9,1.7055]
[1759882709571,2.92306654,4467.1,4467.0,2.0094]
[1759882709776,0.62773,4467.2,4467.0,1.2824]
[1759882709971,0.62773,4467.2,4467.1,1.7055]
[1759882710172,0.225,4467.2,4467.1,1.7055]
[1759882710373,0.40274,4467.1,4467.0,1.0309]
[1759882710579,0.40278,4466.6,4466.5,1.0381]
[1759882710870,3.54525286,4466.6,4466.5,1.5246]
[1759882711778,3.54525286,4466.6,4466.5,2.0166]
[1759882712184,2.91747286,4466.6,4466.5,2.0166]
[1759882712479,0.00237376,4467.7,4467.3,0.4865]
[1759882712682,4.35817904,4467.4,4467.3,1.7055]
[1759882712976,7.23229914,4467.4,4467.3,0.727]
[1759882713182,0.40273,4467.2,4467.1,0.727]
[1759882713375,1.15039904,4467.2,4467.1,0.727]
[1759882713682,4.02451914,4467.2,4467.1,0.727]
[1759882714078,4.02451914,4467.2,4467.0,0.3039]
[1759882714277,0.40277,4466.8,4466.7,0.727]
[1759882714478,0.62777,4466.8,4466.7,0.727]
[1759882714678,3.53876071,4466.8,4466.7,1.2135]
[1759882715078,3.13599071,4466.8,4466.7,1.2135]
[1759882716184,3.65944171,4466.8,4466.7,0.727]
[1759882716875,0.40278,4466.7,4466.5,0.3111]
[1759882717077,3.65944171,4466.8,4465.7,3.61066]
[1759882717078,0.74838527,4466.6,4465.7,3.61066]
[1759882717282,0.40283,4466.1,4466.0,1.0381]
[1759882717483,0.62783,4466.1,4466.0,1.0381]
[1759882717783,4.07594922,4466.1,4466.0,1.0381]
[1759882718481,3.67311922,4466.1,4466.0,1.5246]
[1759882718780,3.67311922,4466.1,4465.5,0.79987591]
[1759882718986,0.52373564,4466.0,4465.6,0.727]
[1759882719283,0.52373564,4466.0,4465.5,0.79987591]
[1759882719284,0.40286,4465.8,4465.7,1.2135]
[1759882719679,3.37908983,4465.8,4465.7,1.2135]
[1759882720284,3.37908983,4465.8,4465.7,1.7055]
[1759882720877,2.97622983,4465.8,4465.7,1.7055]
[1759882721486,2.97622983,4465.8,4465.7,0.727]
[1759882721785,3.90280344,4465.8,4465.7,0.727]
[1759882722081,0.40287,4465.6,4465.5,1.07207591]
[1759882722280,0.62787,4465.6,4465.5,1.07207591]
[1759882722481,4.02312821,4465.6,4465.5,1.07207591]
[1759882725788,4.02312821,4465.6,4465.5,1.57807591]
[1759882725982,3.62025821,4465.6,4465.5,2.49915591]
[1759882726181,3.0965446,4465.6,4465.5,2.49915591]
[1759882726778,0.40281,4466.3,4466.2,1.0242]
[1759882726978,0.40281,4466.3,4466.2,1.7829]
[1759882726979,0.75294307,4466.3,4466.2,1.7829]
[1759882727291,3.47256975,4466.3,4466.2,1.7829]
[1759882727686,0.52794307,4466.3,4466.2,1.7829]
[1759882727981,0.52794307,4466.3,4466.1,3.12014093]
[1759882727982,0.225,4466.5,4466.4,1.2647]
[1759882728186,0.52803695,4466.5,4466.4,1.7829]
[1759882728383,2.93767772,4466.5,4466.4,4.9907]
[1759882728585,2.93767772,4466.5,4466.4,1.7829]
[1759882728790,0.40279,4466.6,4466.5,1.3188]
[1759882728989,3.31162451,4466.6,4466.5,2.0775]
[1759882729189,0.40279,4466.6,4466.5,2.0775]
[1759882729391,3.53662451,4466.6,4466.5,1.0533]
[1759882729590,0.40283,4466.1,4466.0,1.0533]
[1759882729794,1.15581012,4466.1,4466.0,1.0533]
[1759882729980,3.72534108,4466.1,4466.0,2.0775]
[1759882730492,3.72534108,4466.1,4466.0,1.0533]
[1759882733492,3.72534108,4466.1,4466.0,1.5593]
[1759882735798,3.72534108,4466.1,4466.0,1.0533]
[1759882737095,3.72534108,4466.1,4466.0,1.5593]
[1759882737295,3.72534108,4466.1,4466.0,2.0726]
[1759882737687,3.50034108,4466.1,4466.0,2.0726]
[1759882738898,3.50034108,4466.1,4466.0,2.47544]
[1759882739102,4.12817108,4466.1,4466.0,1.0533]
[1759882743694,4.73243108,4466.1,4465.5,0.31337591]
[1759882743895,0.40287,4465.6,4465.5,0.00227591]
[1759882744199,3.53666925,4465.6,4465.5,1.54617591]
[1759882744394,4.06464937,4465.6,4465.5,1.54617591]
[1759882744897,4.06464937,4465.6,4465.5,1.04957591]
[1759882745097,3.66177937,4465.6,4465.5,2.05947591]
[1759882747696,3.66177937,4465.6,4465.5,0.00227591]
[1759882748090,0.40292,4465.1,4465.0,0.3039]
[1759882748301,1.15590012,4465.1,4465.0,1.0652]
[1759882748503,3.71979453,4465.1,4465.0,1.0652]
[1759882748702,1.00733,4465.0,4464.6,0.7613]
[1759882748900,0.40296,4464.6,4464.5,1.0559]
[1759882749097,0.40296,4464.6,4464.5,1.05767391]
[1759882749098,0.62796,4464.6,4464.5,1.05767391]
[1759882749406,3.65920299,4464.6,4464.5,2.06757391]
[1759882749999,3.65920299,4464.6,4464.5,1.55427391]
[1759882750207,3.65920299,4464.6,4464.5,1.05767391]
[1759882750806,3.65920299,4464.6,4464.5,0.00177391]
[1759882751199,3.65920299,4464.6,4464.5,0.28777391]
[1759882751401,3.65920299,4464.6,4464.5,1.04907391]
[1759882752403,3.43420299,4464.6,4464.5,2.05897391]
[1759882754310,2.90622287,4464.6,4464.5,2.05897391]
[1759882755409,3.30918287,4464.6,4464.5,2.05897391]
[1759882757607,3.53418287,4464.6,4464.5,2.05897391]
[1759882757905,3.30918287,4464.6,4464.5,1.54567391]
[1759882758109,3.53418287,4464.6,4464.5,1.54567391]
[1759882759805,3.53418287,4464.6,4464.5,1.04907391]
[1759882761207,3.53418287,4464.6,4464.5,1.54567391]
[1759882761608,3.13122287,4464.6,4464.5,1.94864391]
[1759882762111,3.53418287,4464.6,4464.5,1.54567391]
[1759882762509,3.53418287,4464.6,4464.5,1.04907391]
[1759882762711,3.53418287,4464.6,4464.5,1.54567391]
[1759882763917,3.53418287,4464.6,4464.5,1.04907391]
[1759882766616,3.53418287,4464.6,4464.5,1.54567391]
[1759882767311,4.06580356,4464.6,4464.5,1.54567391]
[1759882768218,3.84080356,4464.6,4464.5,1.54567391]
[1759882768512,4.06580356,4464.6,4464.5,1.54567391]
[1759882768912,3.84080356,4464.6,4464.5,1.04907391]
[1759882769111,4.06580356,4464.6,4464.5,1.04907391]
[1759882775719,3.84080356,4464.6,4464.5,1.04907391]
[1759882775918,4.06580356,4464.6,4464.5,1.04907391]
[1759882776124,3.84080356,4464.6,4464.5,1.04907391]
[1759882776317,4.06580356,4464.6,4464.5,1.04907391]
[1759882777120,3.84080356,4464.6,4464.5,1.04907391]
[1759882777321,4.06580356,4464.6,4464.5,1.04907391]
[1759882779229,3.84080356,4464.6,4464.5,1.04907391]
[1759882779526,4.06580356,4464.6,4464.5,1.04907391]
[1759882781326,3.84080356,4464.6,4464.5,1.04907391]
[1759882781520,4.06580356,4464.6,4464.5,1.52207391]
[1759882781724,3.43784356,4464.6,4464.5,2.42524391]
[1759882781924,0.403,4464.2,4464.1,0.7275]
[1759882782226,3.65053952,4464.2,4463.9,0.7275]
[1759882782424,0.40302,4464.0,4463.9,0.7275]
[1759882782623,0.40302,4464.0,4463.5,0.68906]
[1759882782624,0.75662069,4464.0,4463.5,0.286]
[1759882782822,0.40305,4463.7,4463.6,0.7275]
[1759882783020,0.2273806,4463.7,4463.6,2.10620296]
[1759882783226,3.6241809,4463.7,4463.6,2.10620296]
[1759882783425,0.53400129,4463.7,4463.6,2.10620296]
[1759882783620,4.21514,4465.0,4463.6,2.10620296]
[1759882783621,1.19778793,4464.9,4464.8,0.40295]
[1759882783825,3.2078,4465.0,4464.9,1.7007]
[1759882784229,6.15627821,4465.0,4464.9,1.7007]
[1759882784628,6.15822123,4465.0,4464.9,1.7007]
[1759882788635,2.95042123,4465.0,4464.9,1.7007]
[1759882790333,0.00016911,4465.0,4464.9,1.7007]
[1759882790538,0.00016911,4465.0,4464.9,6.7007]
[1759882790739,3.2078,4466.0,4465.9,2.10355]
[1759882790937,3.2078,4466.0,4465.9,3.05750737]
[1759882791637,3.21009079,4466.0,4465.9,3.05750737]
[1759882795038,0.00229079,4466.0,4465.9,3.05750737]
[1759882795241,0.00229079,4466.0,4465.9,8.05750737]
[1759882795538,3.2078,4467.4,4467.3,1.7007]
[1759882795733,3.74629668,4467.4,4467.3,1.7007]
[1759882795942,6.92348409,4467.4,4467.3,2.65465737]
[1759882796334,6.3876833,4467.4,4467.3,2.6563788]
[1759882796536,6.1626833,4467.4,4467.3,2.6563788]
[1759882797332,3.21049589,4467.4,4467.3,2.8813788]
[1759882797939,0.00269589,4467.4,4467.3,2.8813788]
[1759882798436,0.00269589,4467.4,4467.3,6.0891788]
[1759882798737,0.00269589,4467.4,4467.3,4.91022143]
[1759882798940,0.00269589,4467.4,4467.3,5.13522143]
[1759882799140,0.00269589,4467.4,4467.3,4.91022143]
[1759882799643,2.9692406,4467.4,4467.3,4.91022143]
[1759882801943,0.00269589,4467.4,4467.3,4.91022143]
[1759882802139,3.30466347,4467.4,4467.3,0.72922143]
[1759882802334,8.30466347,4467.4,4467.3,0.00172143]
[1759882802537,8.30466347,4467.4,4467.3,0.72832143]
[1759882803746,8.52966347,4467.4,4467.3,0.72832143]
[1759882803943,3.52966347,4467.4,4467.3,1.18962143]
[1759882804342,2.90195347,4467.4,4467.3,1.18962143]
[1759882804545,3.12695347,4467.4,4467.3,1.66212143]
[1759882804745,2.90195347,4467.4,4467.3,2.6160788]
[1759882804949,0.00269589,4467.4,4467.3,2.6160788]
[1759882805351,0.00269589,4467.4,4467.3,1.66212143]
[1759882806044,0.00269589,4467.4,4467.3,6.88712143]
[1759882806347,0.022,4467.9,4467.8,2.06308]
[1759882806648,0.022,4467.9,4467.8,3.24203737]
[1759882807049,0.022,4467.9,4467.8,3.41905193]
[1759882807249,0.02481603,4467.9,4467.8,3.41905193]
[1759882809544,0.02481603,4467.9,4467.8,8.41905193]
[1759882809853,0.02481603,4467.9,4467.8,2.46509456]
[1759882810248,0.02481603,4467.9,4467.8,7.46509456]
[1759882810453,0.4026,4468.7,4468.6,1.6604]
[1759882810752,0.40258,4468.9,4468.8,0.9338]
[1759882810951,0.40258,4468.9,4468.8,1.6604]
[1759882811153,3.34153623,4468.9,4468.8,1.6604]
[1759882811452,3.34420861,4468.9,4468.8,1.1879]
[1759882811651,2.94162861,4468.9,4468.8,1.6604]
[1759882815150,2.94162861,4468.9,4468.8,1.8854]
[1759882815951,0.00267238,4468.9,4468.8,1.8854]
[1759882816756,2.87877226,4468.9,4468.8,1.6604]
[1759882817252,2.87877226,4468.9,4468.8,2.06299]
[1759882817755,2.87877226,4468.9,4468.8,1.6604]
[1759882820559,3.41221659,4468.9,4468.8,1.6604]
[1759882821263,3.81479659,4468.9,4468.8,1.6604]
[1759882822956,3.81479659,4468.9,4468.8,1.1879]
[1759882823260,0.40263,4468.3,4468.2,3.9344]
[1759882823460,0.40265,4468.1,4467.8,0.7266]
[1759882823757,3.55207577,4468.1,4468.0,1.0218]
[1759882823958,4.0855201,4468.1,4468.0,1.0218]
[1759882824165,1.00668,4467.9,4467.5,0.2952]
[1759882824356,3.2078,4467.7,4467.5,0.2952]
[1759882824661,3.7320348,4467.6,4467.3,0.00172143]
[1759882824859,0.93614433,4467.5,4467.3,0.00172143]
[1759882825067,0.225,4467.4,4467.3,0.00172143]
[1759882825359,8.7051879,4467.4,4466.1,3.2078]
[1759882825660,0.40278,4466.6,4466.1,3.2078]
[1759882825959,4.1079679,4466.6,4466.5,1.0218]
[1759882826356,4.1079679,4466.6,4466.5,1.0245274]
[1759882828862,12.3157679,4466.6,4466.5,0.0027274]
[1759882830861,12.3157679,4466.6,4466.5,0.2925274]
[1759882831458,12.3157679,4466.6,4466.0,0.2952]
[1759882831459,0.40283,4466.1,4466.0,0.2952]
[1759882831753,0.40287,4465.6,4465.5,0.9734]
[1759882831951,0.62787,4465.6,4465.5,0.9734]
[1759882832160,3.49108477,4465.6,4465.5,0.9734]
[1759882832567,6.70060687,4465.6,4465.5,0.97526299]
[1759882832870,12.22976711,4465.6,4465.5,0.00186299]
[1759882833865,12.22937153,4465.6,4465.5,0.00186299]
[1759882834262,0.40292,4465.1,4465.0,0.2952]
[1759882834465,0.40292,4465.1,4465.0,0.9734]
[1759882834466,0.225,4465.1,4465.0,0.9734]
[1759882834665,3.09583756,4465.1,4465.0,1.9542]
[1759882835371,3.09583756,4465.1,4465.0,1.95596668]
[1759882835866,2.87083756,4465.1,4465.0,1.95596668]
[1759882836070,0.0017221,4465.6,4465.5,1.9488]
[1759882836367,0.0017221,4465.6,4465.5,4.66867505]
[1759882836565,2.90648654,4465.6,4465.5,0.968]
[1759882837066,2.90648654,4465.6,4465.5,1.9488]
[1759882837266,3.13148654,4465.6,4465.5,1.9488]
[1759882838068,3.13148654,4465.6,4465.0,0.29696668]
[1759882838069,3.13148654,4465.6,4465.1,0.6782]
[1759882838465,0.40291,4465.2,4465.1,0.6782]
[1759882838663,0.62791,4465.2,4465.1,1.1662]
[1759882838858,3.53454304,4465.2,4465.1,1.1662]
[1759882839259,3.13163304,4465.2,4465.1,1.659]
[1759882839465,0.225,4465.2,4465.1,1.659]
[1759882839967,0.0017221,4465.6,4465.1,1.659]
[1759882839968,0.0017221,4465.6,4465.5,1.60618]
[1759882840167,0.0017221,4465.6,4465.5,2.30948]
[1759882840367,2.96566363,4465.6,4465.5,2.30948]
[1759882840561,0.0017221,4465.6,4465.5,7.30948]
[1759882840763,0.0017221,4465.6,4465.5,7.53448]
[1759882841662,0.0017221,4465.6,4465.5,1.9066]
[1759882842164,0.0017221,4465.6,4465.5,6.9066]
[1759882842562,0.4028,4466.4,4466.3,0.9224]
[1759882842563,0.5218,4466.4,4466.3,0.9224]
[1759882842767,0.119,4466.4,4466.3,2.02851]
[1759882842969,3.03754893,4466.4,4466.3,1.6257]
[1759882843572,3.03969574,4466.4,4466.3,1.6257]
[1759882846770,0.00214681,4466.4,4466.3,1.8507]
[1759882847968,0.00214681,4466.4,4466.3,7.25351]
[1759882848169,3.2078,4467.3,4467.2,0.40273]
[1759882848377,3.2078,4467.3,4467.2,2.02843]
[1759882848569,6.06543583,4467.3,4467.2,2.02843]
[1759882849169,6.06731563,4467.3,4467.2,2.02843]
[1759882849771,6.47003563,4467.3,4467.2,1.6257]
[1759882850273,6.47003563,4467.3,4467.2,2.02843]
[1759882850972,6.06731563,4467.3,4467.2,2.02843]
[1759882853178,6.5982635,4467.3,4467.2,2.02843]
[1759882854680,6.5982635,4467.3,4467.2,1.6257]
[1759882855179,7.0009835,4467.3,4467.2,1.6257]
[1759882855380,7.0009835,4467.3,4467.2,0.7033]
[1759882855571,6.5982635,4467.3,4467.2,0.7033]
[1759882855774,6.5982635,4467.3,4467.2,1.1647]
[1759882855975,7.0009835,4467.3,4467.2,1.6257]
[1759882856169,7.2259835,4467.3,4467.2,0.7033]
[1759882857175,7.2259835,4467.3,4467.2,1.1647]
[1759882858683,0.40274,4467.1,4467.0,0.2809]
[1759882858982,3.58576656,4467.1,4467.0,0.2809]
[1759882859177,4.11659599,4467.1,4467.0,0.9573]
[1759882860982,1.00689,4467.0,4466.6,0.6764]
[1759882861282,4.45912242,4466.9,4466.6,0.6764]
[1759882861483,0.53082943,4466.8,4466.6,0.6764]
[1759882861777,3.16361986,4466.7,4466.6,0.6764]
[1759882862083,3.56639986,4466.7,4466.6,0.6764]
[1759882862279,4.09711245,4466.7,4466.6,0.6764]
[1759882862485,0.40283,4466.1,4466.0,4.1651]
[1759882862785,3.07847672,4466.1,4466.0,4.6408]
[1759882862984,3.48130672,4466.1,4466.0,4.6408]
[1759882864284,3.07847672,4466.1,4466.0,5.50224]
[1759882865087,3.48130672,4466.1,4466.0,5.50224]
[1759882865279,2.85347672,4466.1,4466.0,5.50224]
[1759882867282,0.40278,4466.7,4466.6,0.40278]
[1759882867482,0.53306204,4466.7,4466.6,2.77815313]
[1759882868176,0.93584204,4466.7,4466.6,2.77815313]
[1759882868781,0.93584204,4466.7,4466.6,1.6107]
[1759882868980,0.93584204,4466.7,4466.6,2.01348]
[1759882869888,0.53306204,4466.7,4466.6,2.01348]
[1759882870583,4.04217676,4466.7,4466.6,0.6764]
[1759882870785,4.04217676,4466.7,4466.1,0.40283]
[1759882870786,0.40282,4466.3,4466.1,0.40283]
[1759882871085,0.40283,4466.1,4466.0,0.9573]
[1759882871285,1.16135955,4466.1,4466.0,0.2809]
[1759882871490,4.09940029,4466.1,4466.0,0.9573]
[1759882872792,0.40287,4465.7,4465.6,0.6764]
[1759882872987,0.62787,4465.7,4465.6,0.6764]
[1759882873184,4.01340857,4465.7,4465.6,0.6764]
[1759882873487,4.01340857,4465.7,4465.5,0.2809]
[1759882873689,0.53352955,4465.6,4465.5,0.2809]
[1759882874085,3.38418653,4465.6,4465.5,0.2809]
[1759882877293,3.38418653,4465.6,4465.5,0.9573]
[1759882877786,3.38418653,4465.6,4465.5,1.433]
[1759882878295,3.38418653,4465.6,4465.5,0.9573]
[1759882878688,3.60918653,4465.6,4465.5,0.9573]
[1759882879286,3.38418653,4465.6,4465.5,0.9573]
[1759882879503,3.38418653,4465.6,4465.5,1.8916]
[1759882879792,3.2078,4465.8,4465.7,1.6107]
[1759882880095,3.61056,4466.9,4466.8,1.1521]
[1759882880295,4.36757537,4466.9,4466.8,0.6764]
[1759882880499,4.36757537,4466.9,4466.5,0.277]
[1759882880500,0.40278,4466.6,4466.5,0.277]
[1759882880703,1.15979537,4466.6,4466.5,0.277]
[1759882880996,4.11064112,4466.6,4466.5,0.9534]
[1759882885800,0.40283,4466.1,4466.0,0.9534]
[1759882885994,0.40287,4465.7,4465.5,0.2809]
[1759882886200,0.75739776,4465.6,4465.5,0.9573]
[1759882886399,3.60404818,4465.6,4465.5,0.9573]
[1759882886700,3.60404818,4465.6,4465.5,1.433]
[1759882886896,6.81184818,4465.6,4465.5,0.9573]
[1759882887902,7.21471818,4465.6,4465.5,0.9573]
[1759882897610,4.00691818,4465.6,4465.5,0.9573]
[1759882902408,4.00691818,4465.6,4465.0,0.27876668]
[1759882902409,0.40292,4465.1,4465.0,0.27876668]
[1759882902714,4.02494964,4465.1,4465.0,0.98436668]
[1759882904307,4.02494964,4465.1,4464.6,0.7056]
[1759882904308,1.00734,4465.0,4464.6,0.7056]
[1759882904503,0.40296,4464.7,4464.6,0.7056]
[1759882904709,1.16035776,4464.7,4464.6,0.7056]
[1759882905013,4.11915908,4464.7,4464.6,0.7056]
[1759882905312,4.11915908,4464.7,4464.6,0.70797384]
[1759882906615,4.11915908,4464.7,4464.6,0.00237384]
[1759882907718,4.11915908,4464.7,4464.6,0.70797384]
[1759882908115,4.11915908,4464.7,4464.6,0.00237384]
[1759882909209,4.11915908,4464.7,4464.6,0.70797384]
[1759882910425,3.89415908,4464.7,4464.6,0.70797384]
[1759882910624,4.11915908,4464.7,4464.6,0.70797384]
[1759882911326,3.89415908,4464.7,4464.6,0.70797384]
[1759882911522,4.11915908,4464.7,4464.6,0.70797384]
[1759882912327,3.89415908,4464.7,4464.6,0.70797384]
[1759882912528,4.11915908,4464.7,4464.6,0.70797384]
[1759882913424,3.89415908,4464.7,4464.6,0.70797384]
[1759882913622,4.11915908,4464.7,4464.6,0.70797384]
[1759882914327,4.11915908,4464.7,4464.6,7.00943384]
[1759882914328,3.49119908,4464.7,4464.6,7.00943384]
[1759882919633,3.89415908,4464.7,4464.6,6.60647384]
[1759882920133,3.49119908,4464.7,4464.6,6.60647384]
[1759882920934,3.89415908,4464.7,4464.6,6.60647384]
[1759882922334,3.89415908,4464.7,4463.5,0.7299]
[1759882922335,0.40302,4464.0,4463.5,0.7299]
[1759882922535,0.62803,4463.9,4463.6,0.86236]
[1759882922737,0.225,4463.8,4463.6,0.86236]
[1759882923030,2.96104672,4463.7,4463.6,1.31486]
[1759882923230,2.96264638,4463.7,4463.6,1.31712486]
[1759882923430,3.36569638,4463.7,4463.6,0.91406486]
[1759882924033,3.36569638,4463.7,4463.6,0.00226486]
[1759882924233,3.36569638,4463.7,4463.6,0.68046486]
[1759882924434,2.96264638,4463.7,4463.6,0.68046486]
[1759882924836,2.96264638,4463.7,4463.6,1.13976486]
[1759882926631,0.00159966,4463.7,4463.6,1.59226486]
[1759882926826,2.21011827,4465.0,4464.9,1.59]
[1759882926827,3.2078,4465.0,4464.9,1.59]
[1759882927033,4.37049683,4465.0,4464.9,1.59]
[1759882927234,7.24504289,4465.0,4464.9,1.59]
[1759882927937,7.24703674,4465.0,4464.9,1.59]
[1759882928442,7.24703674,4465.0,4464.9,0.6782]
[1759882928636,0.40295,4464.8,4464.5,0.7447]
[1759882928934,0.40295,4464.8,4464.7,0.9118]
[1759882929139,1.16293549,4464.8,4464.7,1.59]
[1759882929342,4.09768357,4464.8,4464.7,1.59]
[1759882929843,4.09768357,4464.8,4464.7,0.6782]
[1759882930141,0.40301,4464.2,4464.0,0.9636]
[1759882930336,0.225,4464.1,4464.0,1.4229]
[1759882930537,3.73122488,4464.1,4464.0,0.9636]
[1759882932038,3.73122488,4464.1,4464.0,1.4229]
[1759882932340,3.73122488,4464.1,4464.0,1.8754]
[1759882933140,3.50622488,4464.1,4464.0,1.8754]
[1759882933338,3.73122488,4464.1,4464.0,1.8754]
[1759882934346,3.50622488,4464.1,4464.0,1.8754]
[1759882934745,0.53529963,4464.1,4464.0,1.8754]
[1759882935144,0.53529963,4464.1,4464.0,2.27842]
[1759882938850,0.53529963,4464.1,4464.0,7.27842]
[1759882939652,0.53529963,4464.1,4464.0,7.50342]
[1759882940453,0.53529963,4464.1,4464.0,7.27842]
[1759882940655,0.53529963,4464.1,4464.0,2.27842]
[1759882943749,3.4344123,4464.1,4464.0,2.27842]
[1759882944451,3.6594123,4464.1,4464.0,2.27842]
[1759882944852,4.0624223,4464.1,4464.0,2.27842]
[1759882945041,3.6594123,4464.1,4464.0,2.27842]
[1759882945442,3.4344123,4464.1,4464.0,2.27842]
[1759882945648,3.6594123,4464.1,4464.0,2.27842]
[1759882948254,4.0624223,4464.1,4464.0,2.27842]
[1759882948451,0.40305,4463.7,4463.6,0.00226486]
[1759882948658,1.16334963,4463.7,4463.6,0.68696486]
[1759882948854,4.05267448,4463.7,4463.6,0.00226486]
[1759882949654,4.05267448,4463.7,4463.6,0.68696486]
[1759882949955,4.05267448,4463.7,4463.6,0.00226486]
[1759882950857,4.05267448,4463.7,4463.6,0.68696486]
[1759882951360,3.64962448,4463.7,4463.6,0.68696486]
[1759882951556,4.05267448,4463.7,4463.6,0.68696486]
[1759882953061,4.05267448,4463.7,4463.6,0.00226486]
[1759882955056,4.81858113,4463.7,4463.6,0.00226486]
[1759882957953,4.81858113,4463.7,4463.6,1.10756486]
[1759882957954,3.42462448,4463.7,4463.6,1.10756486]
[1759882958162,4.05267448,4463.7,4463.6,1.10756486]
[1759882958765,4.05267448,4463.7,4463.6,0.68696486]
[1759882959463,4.05267448,4463.7,4463.6,0.00226486]
[1759882960159,4.81858113,4463.7,4463.6,0.00226486]
[1759882962871,4.81858113,4463.7,4463.6,0.63896486]
[1759882963065,4.81858113,4463.7,4463.6,0.00226486]
[1759882963464,4.59358113,4463.7,4463.6,0.00226486]
[1759882963670,4.81858113,4463.7,4463.6,0.00226486]
[1759882965162,0.4031,4463.1,4462.9,0.65910721]
[1759882965366,1.16339963,4463.1,4463.0,1.3367]
[1759882965566,3.706411,4463.1,4463.0,2.18471]
[1759882965769,3.706411,4463.1,4463.0,1.7816]
[1759882966367,3.706411,4463.1,4463.0,1.78393012]
[1759882966969,2.94611137,4463.1,4463.0,7.18704012]
[1759882967170,3.2078,4464.0,4463.9,1.91403]
[1759882967371,3.9703192,4464.0,4463.9,1.91403]
[1759882967574,6.90397131,4464.0,4463.9,1.91403]
[1759882967773,6.90397131,4464.0,4463.9,6.91403]
[1759882968678,6.90397131,4464.0,4463.9,0.6367]
[1759882969073,7.91153131,4464.0,4463.6,0.6367]
[1759882969383,0.40305,4463.7,4463.5,0.9128]
[1759882969575,0.7625192,4463.6,4463.5,0.9128]
[1759882969781,3.65952059,4463.6,4463.5,0.9128]
[1759882974382,4.06258059,4463.6,4463.5,0.9128]
[1759882975283,3.65952059,4463.6,4463.1,0.6367]
[1759882975479,0.5375192,4463.5,4463.2,0.6367]
[1759882975685,0.62808,4463.4,4463.3,0.6367]
[1759882975885,4.02093067,4463.4,4463.3,1.0661]
[1759882976389,4.02093067,4463.4,4463.3,0.6367]
[1759882978891,0.4031,4463.1,4463.0,0.27293012]
[1759882979087,0.225,4463.1,4463.0,0.72713012]
[1759882979290,3.40036967,4463.1,4463.0,7.19834012]
[1759882979490,0.403,4464.2,4464.1,0.6351]
[1759882979686,0.225,4464.2,4464.1,2.69121665]
[1759882979886,3.40458296,4464.2,4464.1,2.69121665]
[1759882980589,3.62958296,4464.2,4464.1,1.0893]
[1759882980785,3.62958296,4464.2,4464.1,0.6351]
[1759882981890,3.62958296,4464.2,4464.1,1.0893]
[1759882982092,3.62958296,4464.2,4464.1,1.5223]
[1759882983190,3.62958296,4464.2,4464.1,0.6351]
[1759882983396,3.40458296,4464.2,4464.1,0.6351]
[1759882983695,3.62958296,4464.2,4464.1,1.0893]
[1759882983894,3.62958296,4464.2,4464.1,1.5223]
[1759882985295,3.62958296,4464.2,4464.1,1.0893]
[1759882985596,3.40458296,4464.2,4464.1,1.0893]
[1759882985798,3.62958296,4464.2,4464.1,1.0893]
[1759882986703,3.40458296,4464.2,4464.1,1.0893]